[Event "Live Chess"]
[Site "Chess.com"]
[Date "2023.05.21"]
[Round "-"]
[White "weibs440"]
[Black "DaveL5678"]
[Result "1-0"]
[WhiteElo "961"]
[BlackElo "1012"]
[TimeControl "300"]
[EndTime "16:06:25 PDT"]
[Termination "weibs440 won by checkmate"]

1. e4 {[%clk 0:04:59.4]} 1... c6 {[%clk 0:04:56.5]} 2. d4 {[%clk 0:04:57]} 2...
d5 {[%clk 0:04:52.5]} 3. f3 {[%clk 0:04:56.3]} 3... e6 {[%clk 0:04:46]} 4. Nc3
{[%clk 0:04:53.4]} 4... Bb4 {[%clk 0:04:42.7]} 5. Qd3 {[%clk 0:04:51.4]} 5... c5
{[%clk 0:04:40.6]} 6. dxc5 {[%clk 0:04:37]} 6... Bxc5 {[%clk 0:04:24]} 7. exd5
{[%clk 0:04:27.8]} 7... Qd6 {[%clk 0:04:01.6]} 8. Be3 {[%clk 0:04:00.8]} 8...
Bxe3 {[%clk 0:03:55.2]} 9. Qxe3 {[%clk 0:04:00.7]} 9... Nf6 {[%clk 0:03:53.2]}
10. O-O-O {[%clk 0:03:55.1]} 10... O-O {[%clk 0:03:42.3]} 11. dxe6 {[%clk
0:03:47.9]} 11... Qxe6 {[%clk 0:03:41.4]} 12. Qxe6 {[%clk 0:03:46.3]} 12... Bxe6
{[%clk 0:03:40.4]} 13. Bd3 {[%clk 0:03:34.7]} 13... Nc6 {[%clk 0:03:37]} 14.
Nge2 {[%clk 0:03:33.2]} 14... Rad8 {[%clk 0:03:33.9]} 15. Nf4 {[%clk 0:03:23.3]}
15... Bc8 {[%clk 0:03:13.3]} 16. Bb5 {[%clk 0:03:13.1]} 16... Rxd1+ {[%clk
0:03:06.1]} 17. Rxd1 {[%clk 0:03:13]} 17... Bd7 {[%clk 0:02:57.9]} 18. g4 {[%clk
0:02:56.8]} 18... Re8 {[%clk 0:02:44.7]} 19. g5 {[%clk 0:02:46.1]} 19... Re5
{[%clk 0:02:22.8]} 20. gxf6 {[%clk 0:02:41.5]} 20... Rxb5 {[%clk 0:02:18.9]} 21.
Nxb5 {[%clk 0:02:38.6]} 21... Ne5 {[%clk 0:02:09.9]} 22. fxg7 {[%clk 0:02:22.6]}
22... Bxb5 {[%clk 0:02:06.5]} 23. Rd5 {[%clk 0:02:16.4]} 23... Nxf3 {[%clk
0:01:43.7]} 24. Rxb5 {[%clk 0:02:15]} 24... Nxh2 {[%clk 0:01:42.4]} 25. Nh5
{[%clk 0:02:07.2]} 25... b6 {[%clk 0:01:39]} 26. Rd5 {[%clk 0:02:02.9]} 26...
Nf3 {[%clk 0:01:30.7]} 27. Rd8# {[%clk 0:02:00.9]} 1-0

[Event "Live Chess"]
[Site "Chess.com"]
[Date "2023.05.21"]
[Round "-"]
[White "JoeyCage"]
[Black "domrobson"]
[Result "1-0"]
[WhiteElo "2322"]
[BlackElo "1771"]
[TimeControl "300"]
[EndTime "16:06:29 PDT"]
[Termination "JoeyCage won by resignation"]

1. e4 {[%clk 0:04:50.2]} 1... e5 {[%clk 0:04:58.7]} 2. Nf3 {[%clk 0:04:48.7]}
2... Nc6 {[%clk 0:04:58.1]} 3. Bb5 {[%clk 0:04:47]} 3... a6 {[%clk 0:04:57]} 4.
Bxc6 {[%clk 0:04:45.6]} 4... dxc6 {[%clk 0:04:56.1]} 5. d4 {[%clk 0:04:44]} 5...
exd4 {[%clk 0:04:52.7]} 6. Qxd4 {[%clk 0:04:43]} 6... Bg4 {[%clk 0:04:50.8]} 7.
Nbd2 {[%clk 0:04:36.5]} 7... Bxf3 {[%clk 0:04:48.3]} 8. Nxf3 {[%clk 0:04:35]}
8... Qxd4 {[%clk 0:04:47.4]} 9. Nxd4 {[%clk 0:04:34]} 9... O-O-O {[%clk
0:04:46.8]} 10. Be3 {[%clk 0:04:33]} 10... Nf6 {[%clk 0:04:45.4]} 11. f3 {[%clk
0:04:30.8]} 11... Bc5 {[%clk 0:04:40.9]} 12. O-O-O {[%clk 0:04:29.3]} 12... Rd7
{[%clk 0:04:37.4]} 13. Nf5 {[%clk 0:04:26.6]} 13... Bxe3+ {[%clk 0:04:35.1]} 14.
Nxe3 {[%clk 0:04:25.3]} 14... Rhd8 {[%clk 0:04:34.1]} 15. Rxd7 {[%clk
0:04:18.7]} 15... Rxd7 {[%clk 0:04:32.6]} 16. Rd1 {[%clk 0:04:18.6]} 16... Rxd1+
{[%clk 0:04:31.5]} 17. Nxd1 {[%clk 0:04:17.8]} 17... Kd7 {[%clk 0:04:28.5]} 18.
Kd2 {[%clk 0:04:16.8]} 18... Ke6 {[%clk 0:04:27.9]} 19. Ke3 {[%clk 0:04:15.9]}
19... g5 {[%clk 0:04:26.3]} 20. Nf2 {[%clk 0:04:14.7]} 20... h5 {[%clk
0:04:25.2]} 21. g3 {[%clk 0:04:12.5]} 21... c5 {[%clk 0:04:19.3]} 22. f4 {[%clk
0:04:11.3]} 22... gxf4+ {[%clk 0:04:16.3]} 23. gxf4 {[%clk 0:04:10.2]} 23... c6
{[%clk 0:04:09.4]} 24. h3 {[%clk 0:04:01.2]} 24... b6 {[%clk 0:04:06.1]} 25. Nd3
{[%clk 0:03:58.9]} 25... Nd7 {[%clk 0:04:02]} 26. f5+ {[%clk 0:03:55.9]} 26...
Kf6 {[%clk 0:03:59.3]} 27. Kf4 {[%clk 0:03:53.3]} 27... b5 {[%clk 0:03:56.1]}
28. e5+ {[%clk 0:03:51.9]} 28... Kg7 {[%clk 0:03:53.4]} 29. e6 {[%clk
0:03:46.2]} 29... fxe6 {[%clk 0:03:52]} 30. fxe6 {[%clk 0:03:45.3]} 30... Nf6
{[%clk 0:03:47.4]} 31. Nxc5 {[%clk 0:03:43]} 31... Kf8 {[%clk 0:03:40.5]} 32.
Nd7+ {[%clk 0:03:19.9]} 32... Nxd7 {[%clk 0:03:33.7]} 33. exd7 {[%clk
0:03:18.9]} 33... Ke7 {[%clk 0:03:33.4]} 34. Kg5 {[%clk 0:03:18.8]} 34... Kxd7
{[%clk 0:03:32.7]} 35. Kxh5 {[%clk 0:03:18.2]} 35... Ke6 {[%clk 0:03:31.9]} 36.
Kg5 {[%clk 0:03:17.5]} 36... c5 {[%clk 0:03:29.2]} 37. Kf4 {[%clk 0:03:16.8]}
37... a5 {[%clk 0:03:27.8]} 38. Ke4 {[%clk 0:03:15.9]} 38... b4 {[%clk
0:03:24.4]} 39. c3 {[%clk 0:03:12.8]} 39... a4 {[%clk 0:03:14.3]} 40. a3 {[%clk
0:03:11.6]} 1-0

[Event "Live Chess"]
[Site "Chess.com"]
[Date "2023.05.21"]
[Round "-"]
[White "jimwad"]
[Black "GMHarry-youtube"]
[Result "0-1"]
[WhiteElo "1226"]
[BlackElo "2008"]
[TimeControl "300"]
[EndTime "16:06:33 PDT"]
[Termination "GMHarry-youtube won by resignation"]

1. c4 {[%clk 0:04:58.3]} 1... Nf6 {[%clk 0:04:58.4]} 2. g3 {[%clk 0:04:56.9]}
2... g6 {[%clk 0:04:57.7]} 3. Bg2 {[%clk 0:04:56]} 3... Bg7 {[%clk 0:04:57.4]}
4. d3 {[%clk 0:04:54.9]} 4... O-O {[%clk 0:04:56.7]} 5. Nc3 {[%clk 0:04:54]}
5... c6 {[%clk 0:04:55.1]} 6. e4 {[%clk 0:04:52.7]} 6... e6 {[%clk 0:04:53.1]}
7. Nf3 {[%clk 0:04:51.7]} 7... d5 {[%clk 0:04:51.5]} 8. cxd5 {[%clk 0:04:50]}
8... cxd5 {[%clk 0:04:51.4]} 9. e5 {[%clk 0:04:46.6]} 9... Nfd7 {[%clk
0:04:48.4]} 10. d4 {[%clk 0:04:45.4]} 10... Nc6 {[%clk 0:04:46.8]} 11. O-O
{[%clk 0:04:42.9]} 11... a6 {[%clk 0:04:45.1]} 12. Be3 {[%clk 0:04:40.8]} 12...
b5 {[%clk 0:04:43.7]} 13. a3 {[%clk 0:04:38.6]} 13... Nb6 {[%clk 0:04:42.4]} 14.
b4 {[%clk 0:04:36.9]} 14... Nc4 {[%clk 0:04:41.2]} 15. Qe2 {[%clk 0:04:27.1]}
15... Ne7 {[%clk 0:04:32.3]} 16. Rac1 {[%clk 0:04:24.9]} 16... Nf5 {[%clk
0:04:29.7]} 17. Bd2 {[%clk 0:04:21.9]} 17... Nxa3 {[%clk 0:04:25.4]} 18. Ra1
{[%clk 0:04:09.5]} 18... Nc2 {[%clk 0:04:17.6]} 19. Ra2 {[%clk 0:04:07.7]} 19...
Ncxd4 {[%clk 0:04:15.4]} 20. Nxd4 {[%clk 0:04:06.2]} 20... Nxd4 {[%clk
0:04:15.3]} 21. Qd3 {[%clk 0:04:04.9]} 21... Nf5 {[%clk 0:04:13.7]} 22. f4
{[%clk 0:04:02.9]} 22... Qb6+ {[%clk 0:04:11.6]} 23. Kh1 {[%clk 0:04:01.3]}
23... Qd4 {[%clk 0:04:09.7]} 24. Qxd4 {[%clk 0:03:59.7]} 24... Nxd4 {[%clk
0:04:08.9]} 25. Be3 {[%clk 0:03:57.1]} 25... Nc6 {[%clk 0:04:06.1]} 26. Nxb5
{[%clk 0:03:53.1]} 26... Nxb4 {[%clk 0:04:02.6]} 27. Ra4 {[%clk 0:03:48.8]}
27... Bd7 {[%clk 0:04:00]} 28. Nc7 {[%clk 0:03:45.5]} 28... Bxa4 {[%clk
0:03:57.7]} 29. Nxa8 {[%clk 0:03:43.8]} 29... Rxa8 {[%clk 0:03:57.6]} 30. Ra1
{[%clk 0:03:41.5]} 30... Bb5 {[%clk 0:03:56.6]} 31. Bd4 {[%clk 0:03:39.2]} 31...
Nc2 {[%clk 0:03:54]} 32. Ra2 {[%clk 0:03:37.6]} 32... Nxd4 {[%clk 0:03:53.3]}
0-1

[Event "Live Chess"]
[Site "Chess.com"]
[Date "2023.05.21"]
[Round "-"]
[White "toog"]
[Black "CheckThis4"]
[Result "0-1"]
[WhiteElo "2597"]
[BlackElo "2539"]
[TimeControl "300"]
[EndTime "16:06:36 PDT"]
[Termination "CheckThis4 won by resignation"]

1. d4 {[%clk 0:04:56.1]} 1... Nf6 {[%clk 0:04:56.9]} 2. c4 {[%clk 0:04:53.4]}
2... e5 {[%clk 0:04:55.5]} 3. dxe5 {[%clk 0:04:52]} 3... Ng4 {[%clk 0:04:54.6]}
4. e3 {[%clk 0:04:51.6]} 4... Nxe5 {[%clk 0:04:51.9]} 5. f4 {[%clk 0:04:51.1]}
5... Nec6 {[%clk 0:04:48.9]} 6. Nf3 {[%clk 0:04:50.5]} 6... Bc5 {[%clk
0:04:31.4]} 7. Nc3 {[%clk 0:04:43.3]} 7... d6 {[%clk 0:04:28.5]} 8. Bd3 {[%clk
0:04:41.7]} 8... a5 {[%clk 0:04:20.2]} 9. Nd5 {[%clk 0:04:39.8]} 9... Nb4 {[%clk
0:04:13.7]} 10. a3 {[%clk 0:04:34.3]} 10... Nxd3+ {[%clk 0:04:05.4]} 11. Qxd3
{[%clk 0:04:34.2]} 11... c6 {[%clk 0:04:02.7]} 12. Nc3 {[%clk 0:04:32.8]} 12...
Nd7 {[%clk 0:03:57.2]} 13. Ne4 {[%clk 0:04:29.8]} 13... Nf6 {[%clk 0:03:53]} 14.
Nxc5 {[%clk 0:04:24.6]} 14... dxc5 {[%clk 0:03:52.9]} 15. Qxd8+ {[%clk
0:04:23.6]} 15... Kxd8 {[%clk 0:03:50.6]} 16. Bd2 {[%clk 0:04:23]} 16... Be6
{[%clk 0:03:43.6]} 17. Ne5 {[%clk 0:04:16.5]} 17... Nd7 {[%clk 0:03:35.5]} 18.
Nxd7 {[%clk 0:04:08]} 18... Kxd7 {[%clk 0:03:35.4]} 19. Bc3 {[%clk 0:04:07.4]}
19... Bxc4 {[%clk 0:03:26.5]} 20. O-O-O+ {[%clk 0:04:00.1]} 20... Ke6 {[%clk
0:03:24.6]} 21. Bxg7 {[%clk 0:03:17.9]} 21... Rhg8 {[%clk 0:03:20.8]} 22. Bc3
{[%clk 0:03:17.4]} 22... Rxg2 {[%clk 0:03:15.2]} 23. e4 {[%clk 0:03:14]} 23...
Bb3 {[%clk 0:03:07.4]} 24. f5+ {[%clk 0:03:10.5]} 24... Ke7 {[%clk 0:03:06.4]}
25. Rd3 {[%clk 0:03:02.9]} 25... Rc2+ {[%clk 0:02:49.9]} 26. Kb1 {[%clk
0:03:00.9]} 26... Re2 {[%clk 0:02:48.8]} 27. Rh3 {[%clk 0:02:52]} 27... Bc2+
{[%clk 0:02:43]} 28. Ka1 {[%clk 0:02:51.2]} 28... Bxe4 {[%clk 0:02:41.4]} 29.
Rf1 {[%clk 0:02:50.2]} 29... a4 {[%clk 0:02:32.2]} 30. Rxh7 {[%clk 0:02:46]}
30... Rg8 {[%clk 0:02:27.9]} 31. f6+ {[%clk 0:02:40.2]} 31... Ke6 {[%clk
0:02:26.5]} 32. Rh5 {[%clk 0:02:38.9]} 32... Bd5 {[%clk 0:02:10.3]} 33. Re5+
{[%clk 0:02:37.2]} 33... Rxe5 {[%clk 0:02:08.6]} 0-1

[Event "Live Chess"]
[Site "Chess.com"]
[Date "2023.05.21"]
[Round "-"]
[White "Singapourfeuj"]
[Black "wot-not"]
[Result "1-0"]
[WhiteElo "2189"]
[BlackElo "1546"]
[TimeControl "300"]
[EndTime "16:06:37 PDT"]
[Termination "Singapourfeuj won by resignation"]

1. d4 {[%clk 0:04:59.7]} 1... Nf6 {[%clk 0:04:58.2]} 2. Nf3 {[%clk 0:04:58.7]}
2... d6 {[%clk 0:04:55.9]} 3. c4 {[%clk 0:04:57.9]} 3... Bg4 {[%clk 0:04:55]} 4.
Nc3 {[%clk 0:04:55.6]} 4... Nbd7 {[%clk 0:04:53.3]} 5. e4 {[%clk 0:04:53.7]}
5... e5 {[%clk 0:04:48.9]} 6. d5 {[%clk 0:04:52.9]} 6... Be7 {[%clk 0:04:47]} 7.
h3 {[%clk 0:04:51.9]} 7... Bxf3 {[%clk 0:04:46]} 8. Qxf3 {[%clk 0:04:50.8]} 8...
Nf8 {[%clk 0:04:45.5]} 9. g3 {[%clk 0:04:45.8]} 9... Ng6 {[%clk 0:04:44.2]} 10.
Bg2 {[%clk 0:04:44.7]} 10... O-O {[%clk 0:04:42.5]} 11. h4 {[%clk 0:04:43.7]}
11... a6 {[%clk 0:04:26.2]} 12. h5 {[%clk 0:04:42.7]} 12... Nh8 {[%clk
0:04:24.7]} 13. g4 {[%clk 0:04:38.5]} 13... Ne8 {[%clk 0:04:20.8]} 14. Bh3
{[%clk 0:04:36]} 14... Bg5 {[%clk 0:04:19.4]} 15. Bxg5 {[%clk 0:04:32.4]} 15...
Qxg5 {[%clk 0:04:17.9]} 16. Nd1 {[%clk 0:04:31.1]} 16... Qf4 {[%clk 0:04:10.7]}
17. Qxf4 {[%clk 0:04:27.9]} 17... exf4 {[%clk 0:04:09.6]} 18. f3 {[%clk
0:04:25.6]} 18... g6 {[%clk 0:04:04.1]} 19. Bf1 {[%clk 0:04:23.6]} 19... g5
{[%clk 0:03:59.1]} 20. Nf2 {[%clk 0:04:16.7]} 20... f6 {[%clk 0:03:57.5]} 21. h6
{[%clk 0:04:14.8]} 21... Nf7 {[%clk 0:03:56.3]} 22. Nd3 {[%clk 0:04:13.4]} 22...
c6 {[%clk 0:03:47.8]} 23. Rc1 {[%clk 0:04:06.9]} 23... Rc8 {[%clk 0:03:43.1]}
24. Be2 {[%clk 0:04:04.3]} 24... Nc7 {[%clk 0:03:38.8]} 25. Kd2 {[%clk 0:04:03]}
25... cxd5 {[%clk 0:03:36.3]} 26. cxd5 {[%clk 0:04:02.1]} 26... Ne5 {[%clk
0:03:31.1]} 27. Nxe5 {[%clk 0:03:58.9]} 27... fxe5 {[%clk 0:03:28.6]} 28. Rh5
{[%clk 0:03:57.5]} 28... Rf6 {[%clk 0:03:13.5]} 29. Rxg5+ {[%clk 0:03:55]} 29...
Rg6 {[%clk 0:03:12.8]} 30. Rxg6+ {[%clk 0:03:53.6]} 30... hxg6 {[%clk
0:03:12.1]} 31. g5 {[%clk 0:03:52.7]} 31... Kf7 {[%clk 0:03:01.6]} 32. b4 {[%clk
0:03:51.4]} 32... Ke7 {[%clk 0:03:00]} 33. a4 {[%clk 0:03:50.4]} 33... Kd7
{[%clk 0:02:57.1]} 34. b5 {[%clk 0:03:49.5]} 34... axb5 {[%clk 0:02:55.5]} 35.
axb5 {[%clk 0:03:48.7]} 35... Ra8 {[%clk 0:02:44.3]} 36. b6 {[%clk 0:03:47.1]}
36... Ne8 {[%clk 0:02:39.9]} 37. Bb5+ {[%clk 0:03:44.1]} 37... Ke7 {[%clk
0:02:38.3]} 38. h7 {[%clk 0:03:39.1]} 38... Ng7 {[%clk 0:02:36]} 39. Rc7+ {[%clk
0:03:37]} 1-0

[Event "Live Chess"]
[Site "Chess.com"]
[Date "2023.05.21"]
[Round "-"]
[White "martynstanley"]
[Black "Missedidea"]
[Result "0-1"]
[WhiteElo "1002"]
[BlackElo "1812"]
[TimeControl "300"]
[EndTime "16:06:37 PDT"]
[Termination "Missedidea won by checkmate"]

1. d4 {[%clk 0:04:59.4]} 1... Nf6 {[%clk 0:04:58]} 2. e3 {[%clk 0:04:58.6]} 2...
g6 {[%clk 0:04:56.3]} 3. Bd3 {[%clk 0:04:57.8]} 3... Bg7 {[%clk 0:04:55.4]} 4.
c3 {[%clk 0:04:57.2]} 4... O-O {[%clk 0:04:53.7]} 5. f4 {[%clk 0:04:55.8]} 5...
d6 {[%clk 0:04:51.8]} 6. Nf3 {[%clk 0:04:54.9]} 6... Nbd7 {[%clk 0:04:49.9]} 7.
O-O {[%clk 0:04:54]} 7... e5 {[%clk 0:04:48]} 8. fxe5 {[%clk 0:04:52.7]} 8...
dxe5 {[%clk 0:04:46.6]} 9. Nxe5 {[%clk 0:04:51.2]} 9... Nxe5 {[%clk 0:04:44.9]}
10. dxe5 {[%clk 0:04:49.6]} 10... Ng4 {[%clk 0:04:43.5]} 11. h3 {[%clk 0:04:47]}
11... Nxe5 {[%clk 0:04:41.1]} 12. Na3 {[%clk 0:04:43.6]} 12... Qxd3 {[%clk
0:04:37.4]} 13. Qxd3 {[%clk 0:04:42.2]} 13... Nxd3 {[%clk 0:04:35.3]} 14. b3
{[%clk 0:04:38.8]} 14... c6 {[%clk 0:04:33.2]} 15. c4 {[%clk 0:04:37.9]} 15...
Bxa1 {[%clk 0:04:25.2]} 16. Nc2 {[%clk 0:04:35.3]} 16... Bg7 {[%clk 0:04:22.6]}
17. Nd4 {[%clk 0:04:34.3]} 17... Bd7 {[%clk 0:04:19.2]} 18. Bd2 {[%clk
0:04:30.1]} 18... Rfe8 {[%clk 0:04:15.4]} 19. g4 {[%clk 0:04:25.3]} 19... Re7
{[%clk 0:04:10.4]} 20. Kg2 {[%clk 0:04:24.5]} 20... Rae8 {[%clk 0:04:05.7]} 21.
Rf3 {[%clk 0:04:23.5]} 21... Ne5 {[%clk 0:04:00.4]} 22. Rg3 {[%clk 0:04:21.3]}
22... b6 {[%clk 0:03:58.6]} 23. b4 {[%clk 0:04:19.6]} 23... Bc8 {[%clk
0:03:55.5]} 24. a4 {[%clk 0:04:16.3]} 24... Bb7 {[%clk 0:03:53.8]} 25. c5 {[%clk
0:04:14.4]} 25... Nd7 {[%clk 0:03:49.2]} 26. Kf3 {[%clk 0:04:07.5]} 26... bxc5
{[%clk 0:03:44.1]} 27. bxc5 {[%clk 0:04:05.8]} 27... Nxc5 {[%clk 0:03:42.2]} 28.
Bb4 {[%clk 0:04:03.2]} 28... Rxe3+ {[%clk 0:03:40.1]} 29. Kf4 {[%clk 0:04:00.3]}
29... Nd3+ {[%clk 0:03:38.1]} 30. Kg5 {[%clk 0:03:55.7]} 30... h6+ {[%clk
0:03:33.9]} 31. Kh4 {[%clk 0:03:52.4]} 31... Bf6+ {[%clk 0:03:30.9]} 32. g5
{[%clk 0:03:50.4]} 32... R8e4+ {[%clk 0:03:27.9]} 33. Rg4 {[%clk 0:03:48.9]}
33... hxg5# {[%clk 0:03:26.5]} 0-1

[Event "Live Chess"]
[Site "Chess.com"]
[Date "2023.05.21"]
[Round "-"]
[White "ZackirtyChess"]
[Black "Brooms1989"]
[Result "1-0"]
[WhiteElo "1170"]
[BlackElo "1088"]
[TimeControl "300"]
[EndTime "16:06:43 PDT"]
[Termination "ZackirtyChess won by resignation"]

1. f4 {[%clk 0:04:54.9]} 1... Nf6 {[%clk 0:04:52.9]} 2. Nf3 {[%clk 0:04:51.9]}
2... Nc6 {[%clk 0:04:50.9]} 3. Nc3 {[%clk 0:04:49.9]} 3... g6 {[%clk 0:04:49]}
4. d3 {[%clk 0:04:46.2]} 4... Bg7 {[%clk 0:04:47.9]} 5. e4 {[%clk 0:04:44.9]}
5... d6 {[%clk 0:04:45.7]} 6. g3 {[%clk 0:04:43.3]} 6... Bg4 {[%clk 0:04:43.6]}
7. Be2 {[%clk 0:04:38.7]} 7... Bxf3 {[%clk 0:04:41.9]} 8. Bxf3 {[%clk
0:04:35.2]} 8... Nd4 {[%clk 0:04:41.3]} 9. Be3 {[%clk 0:04:32.8]} 9... Nxf3+
{[%clk 0:04:39.6]} 10. Qxf3 {[%clk 0:04:32.7]} 10... O-O {[%clk 0:04:21]} 11.
O-O {[%clk 0:04:29.1]} 11... c5 {[%clk 0:04:15.6]} 12. e5 {[%clk 0:04:25.7]}
12... dxe5 {[%clk 0:04:12.5]} 13. fxe5 {[%clk 0:04:24.2]} 13... Nd7 {[%clk
0:04:10.3]} 14. Qxb7 {[%clk 0:04:20]} 14... Bxe5 {[%clk 0:03:58.7]} 15. Bf4
{[%clk 0:04:08.6]} 15... Bd4+ {[%clk 0:03:51.5]} 16. Kh1 {[%clk 0:04:05.8]}
16... e5 {[%clk 0:03:44.3]} 17. Bh6 {[%clk 0:04:03]} 17... Re8 {[%clk 0:03:37]}
18. Qf3 {[%clk 0:03:53.8]} 18... Re7 {[%clk 0:03:23.5]} 19. Bg5 {[%clk
0:03:51.5]} 19... Bxc3 {[%clk 0:02:45.2]} 20. Bxe7 {[%clk 0:03:43.3]} 20... Qxe7
{[%clk 0:02:45.1]} 21. bxc3 {[%clk 0:03:41.3]} 21... Rf8 {[%clk 0:02:42.2]} 22.
Rab1 {[%clk 0:03:36.8]} 22... f5 {[%clk 0:02:34.4]} 23. Qd5+ {[%clk 0:03:30.4]}
23... Kh8 {[%clk 0:02:31]} 24. Rb7 {[%clk 0:03:26]} 24... Rd8 {[%clk 0:02:28]}
25. Re1 {[%clk 0:03:22]} 25... e4 {[%clk 0:02:15.1]} 26. dxe4 {[%clk 0:03:19.6]}
26... fxe4 {[%clk 0:02:13.9]} 27. Rxe4 {[%clk 0:03:18.3]} 27... Qf6 {[%clk
0:02:04.3]} 28. Rf4 {[%clk 0:03:09.9]} 28... Qxc3 {[%clk 0:01:59]} 29. Rxd7
{[%clk 0:03:01.7]} 29... Qe1+ {[%clk 0:01:56.9]} 30. Kg2 {[%clk 0:02:59]} 30...
Qe2+ {[%clk 0:01:54.9]} 31. Rf2 {[%clk 0:02:53.6]} 31... Qe8 {[%clk 0:01:36.6]}
32. Rxd8 {[%clk 0:02:51]} 1-0

[Event "Live Chess"]
[Site "Chess.com"]
[Date "2023.05.21"]
[Round "-"]
[White "Conradical12"]
[Black "EdenHazard8"]
[Result "1-0"]
[WhiteElo "1619"]
[BlackElo "2034"]
[TimeControl "300"]
[EndTime "16:06:43 PDT"]
[Termination "Conradical12 won by resignation"]

1. e4 {[%clk 0:04:57.5]} 1... c5 {[%clk 0:04:59.2]} 2. Nf3 {[%clk 0:04:56.5]}
2... Nc6 {[%clk 0:04:58.7]} 3. Bc4 {[%clk 0:04:55.5]} 3... e6 {[%clk 0:04:57.5]}
4. d4 {[%clk 0:04:53]} 4... cxd4 {[%clk 0:04:56.3]} 5. Nxd4 {[%clk 0:04:51.7]}
5... Nf6 {[%clk 0:04:55.7]} 6. Nxc6 {[%clk 0:04:49.3]} 6... bxc6 {[%clk
0:04:54.5]} 7. Nc3 {[%clk 0:04:47.7]} 7... d5 {[%clk 0:04:54]} 8. exd5 {[%clk
0:04:45.8]} 8... exd5 {[%clk 0:04:53.8]} 9. Be2 {[%clk 0:04:44.3]} 9... Bd6
{[%clk 0:04:52.9]} 10. Be3 {[%clk 0:04:43.5]} 10... O-O {[%clk 0:04:52.3]} 11.
O-O {[%clk 0:04:42.9]} 11... Re8 {[%clk 0:04:51.6]} 12. Bd3 {[%clk 0:04:40.4]}
12... Rb8 {[%clk 0:04:50.3]} 13. Rb1 {[%clk 0:04:37.9]} 13... Bxh2+ {[%clk
0:04:45.2]} 14. Kxh2 {[%clk 0:04:32.2]} 14... Ng4+ {[%clk 0:04:44.2]} 15. Kg1
{[%clk 0:04:31.8]} 15... d4 {[%clk 0:04:40.6]} 16. Bf4 {[%clk 0:04:17.6]} 16...
Rb4 {[%clk 0:04:38.7]} 17. a3 {[%clk 0:04:08.2]} 17... dxc3 {[%clk 0:04:34.5]}
18. axb4 {[%clk 0:04:05.7]} 18... Qf6 {[%clk 0:04:34.1]} 19. Qf3 {[%clk
0:03:53.2]} 19... Be6 {[%clk 0:04:19.2]} 20. bxc3 {[%clk 0:03:50.6]} 20... h5
{[%clk 0:04:17.6]} 21. Qxc6 {[%clk 0:03:34.3]} 21... Rc8 {[%clk 0:04:10.6]} 22.
Qf3 {[%clk 0:03:23.1]} 22... Bd5 {[%clk 0:04:09]} 23. Qxd5 {[%clk 0:03:00.2]}
23... Qxf4 {[%clk 0:04:08.4]} 24. g3 {[%clk 0:02:57.4]} 24... Qc7 {[%clk
0:04:06.9]} 25. Qf5 {[%clk 0:02:51]} 25... Ne5 {[%clk 0:04:00.6]} 26. Qh7+
{[%clk 0:02:43.1]} 26... Kf8 {[%clk 0:03:59]} 27. Rbe1 {[%clk 0:02:36.6]} 27...
Nf3+ {[%clk 0:03:57]} 28. Kg2 {[%clk 0:02:33.8]} 28... Nxe1+ {[%clk 0:03:52.8]}
29. Rxe1 {[%clk 0:02:33.7]} 29... Qc6+ {[%clk 0:03:50.7]} 30. Be4 {[%clk
0:02:17.8]} 30... Qh6 {[%clk 0:03:50.6]} 31. Qxh6 {[%clk 0:02:15.1]} 31... gxh6
{[%clk 0:03:50.2]} 32. Re3 {[%clk 0:02:14.6]} 32... Kg7 {[%clk 0:03:45.2]} 33.
f4 {[%clk 0:02:08.1]} 1-0

[Event "Live Chess"]
[Site "Chess.com"]
[Date "2023.05.21"]
[Round "-"]
[White "risinghelios"]
[Black "Pablo_dmp"]
[Result "0-1"]
[WhiteElo "1889"]
[BlackElo "1885"]
[TimeControl "300"]
[EndTime "16:06:48 PDT"]
[Termination "Pablo_dmp won by resignation"]

1. e4 {[%clk 0:04:58.6]} 1... c6 {[%clk 0:04:58.3]} 2. d4 {[%clk 0:04:57.8]}
2... d5 {[%clk 0:04:57.8]} 3. exd5 {[%clk 0:04:57.7]} 3... cxd5 {[%clk 0:04:57]}
4. Nf3 {[%clk 0:04:57.6]} 4... Nf6 {[%clk 0:04:56.4]} 5. Bd3 {[%clk 0:04:57.5]}
5... Bg4 {[%clk 0:04:54.9]} 6. c3 {[%clk 0:04:57.4]} 6... e6 {[%clk 0:04:54.1]}
7. h3 {[%clk 0:04:57.3]} 7... Bh5 {[%clk 0:04:52.7]} 8. Bg5 {[%clk 0:04:57]}
8... Be7 {[%clk 0:04:51.5]} 9. g4 {[%clk 0:04:56.5]} 9... Bg6 {[%clk 0:04:50.1]}
10. Bxg6 {[%clk 0:04:56.1]} 10... hxg6 {[%clk 0:04:50]} 11. Ne5 {[%clk
0:04:55.5]} 11... Nbd7 {[%clk 0:04:48]} 12. f4 {[%clk 0:04:53.7]} 12... Ne4
{[%clk 0:04:45.1]} 13. Bxe7 {[%clk 0:04:52.8]} 13... Qxe7 {[%clk 0:04:45]} 14.
Nd2 {[%clk 0:04:52.3]} 14... Qh4+ {[%clk 0:04:39.1]} 15. Ke2 {[%clk 0:04:51.6]}
15... Ng3+ {[%clk 0:04:19.2]} 16. Kd3 {[%clk 0:04:50.1]} 16... Nxe5+ {[%clk
0:04:17.7]} 17. fxe5 {[%clk 0:04:49.3]} 17... Nxh1 {[%clk 0:04:15.1]} 18. Qxh1
{[%clk 0:04:48.3]} 18... Qxh3+ {[%clk 0:04:14.4]} 19. Qxh3 {[%clk 0:04:47]}
19... Rxh3+ {[%clk 0:04:14.3]} 20. Kc2 {[%clk 0:04:44.3]} 20... O-O-O {[%clk
0:04:10.9]} 21. Nb3 {[%clk 0:04:44.2]} 0-1